fUST/lending_fUST_20240424
["ID","MTS","AMOUNT","RATE_DAILY","PERIOD"]
[323326422,1713897042701,-500.0,0.00019178,2]
[323326424,1713897042709,-151.0,0.00019178,2]
[323326426,1713897042719,-151.0,0.00019178,2]
[323326428,1713897042728,-151.0,0.00019178,2]
[323326430,1713897042737,-500.0,0.00019178,2]
[323326432,1713897042746,-151.0,0.00019178,2]
[323326434,1713897042756,-192.589953,0.00019178,2]
[323326436,1713897042765,-500.0,0.00019178,2]
[323326439,1713897042774,-2353.79,0.00019178,2]
[323326442,1713897042784,-500.0,0.00019178,2]
[323326444,1713897042793,-500.0,0.00019178,2]
[323326447,1713897042802,-500.0,0.00019178,2]
[323326450,1713897042812,-500.0,0.00019178,2]
[323326451,1713897042821,-500.0,0.00019178,2]
[323326452,1713897042830,-500.0,0.00019178,2]
[323326453,1713897042839,-500.0,0.00019178,2]
[323326454,1713897042848,-6137.51696121,0.00019178,2]
[323326479,1713897043523,-189.65280989,0.00019177,2]
[323326481,1713897043532,-194.6826898,0.00019178,2]
[323326507,1713897128678,300.0,0.00014728,2]
[323326508,1713897129287,420.0,0.00016201,2]
[323326509,1713897240863,265.42106498,0.000162,7]
[323326544,1713897951145,-154.81422293,0.00014718,2]
[323326545,1713897951261,-154.81422293,0.00014719,2]
[323326546,1713897951283,-195.14242935,0.00016201,2]
[323326547,1713897951304,-179.191999,0.0001796,2]
[323326548,1713897951324,-918.04802022,0.00018899,2]
[323326549,1713897951346,-208.65389593,0.000189,2]
[323326550,1713897951366,-512.19813176,0.00018933,2]
[323326551,1713897951386,-1000.0,0.00018942,2]
[323326552,1713897951405,-1000.0,0.00018946,2]
[323326553,1713897951427,-1000.0,0.00018948,2]
[323326554,1713897951448,-1000.0,0.00018955,2]
[323326555,1713897951468,-2000.0,0.00018975,2]
[323326556,1713897951488,-1000.0,0.00018985,2]
[323326557,1713897951509,-157.53850696,0.00018986,2]
[323326558,1713897951530,-1000.0,0.00018992,2]
[323326559,1713897951551,-300.0,0.00018996,2]
[323326560,1713897951573,-300.0,0.00018996,2]
[323326561,1713897951614,-203.583665,0.00019,2]
[323326562,1713897951634,-284.33583576,0.00019,2]
[323326563,1713897951654,-11590.53956126,0.00019008,2]
[323326568,1713898033103,-150.0,0.000189,2]
[323326569,1713898033123,-296.32266912,0.00018914,2]
[323326571,1713898049121,-5.31186562,0.00018914,2]
[323326572,1713898049141,-344.04813438,0.00018975,2]
[323326573,1713898158121,-596.9688075,0.00018,2]
[323326574,1713898158144,-601.4511925,0.00018015,2]
[323326575,1713898162575,-105.5488075,0.00018015,2]
[323326576,1713898162595,-105.5488075,0.00018975,2]
[323326577,1713898162606,-1078.902385,0.00018975,2]
[323326684,1713898238191,-313.17667248,0.00018914,2]
[323326685,1713898238302,-471.50067312,0.00018975,2]
[323326686,1713898238312,-157.53850697,0.00018986,2]
[323326687,1713898238321,-300.0,0.00019007,2]
[323326688,1713898238330,-39623.66297256,0.00019008,2]
[323326689,1713898238339,-1000.0,0.00019014,2]
[323326690,1713898238348,-1000.0,0.00019017,2]
[323326691,1713898238357,-1000.0,0.00019032,2]
[323326692,1713898238366,-1000.0,0.00019033,2]
[323326693,1713898238376,-1000.0,0.00019054,2]
[323326694,1713898238385,-1000.0,0.0001906,2]
[323326695,1713898238394,-1000.0,0.00019075,2]
[323326696,1713898238403,-223.21192281,0.00019075,7]
[323326697,1713898238412,-2963.79409613,0.00019075,2]
[323326698,1713898238421,-228.69176972,0.00019076,2]
[323326699,1713898238430,-291.9508022,0.00019076,2]
[323326700,1713898238439,-474.79230604,0.00019076,2]
[323326701,1713898238448,-154.95418533,0.00019076,2]
[323326702,1713898238458,-154.86062544,0.00019076,2]
[323326703,1713898238467,-154.84515175,0.00019076,2]
[323326704,1713898238476,-1289.45845379,0.00019076,7]
[323326705,1713898238486,-276.5697273,0.00019077,2]
[323326706,1713898238495,-44444.0,0.00019078,2]
[323326707,1713898238505,-153.0,0.000191,2]
[323326708,1713898238518,-1000.0,0.00019109,2]
[323326709,1713898238527,-1000.0,0.00019111,2]
[323326710,1713898238536,-1000.0,0.00019111,2]
[323326711,1713898238546,-622.51134787,0.00019115,2]
[323326712,1713898238557,-1000.0,0.00019158,2]
[323326713,1713898238566,-591.8436434,0.00019177,2]
[323326714,1713898238575,-112007.6829484,0.00019177,2]
[323326715,1713898238585,-1000.0,0.00019177,2]
[323326716,1713898238595,-72012.69229508,0.00019178,2]
[323326717,1713898238604,-500.0,0.00019178,2]
[323326718,1713898238614,-246.79454579,0.00019178,2]
[323326719,1713898238625,-500.0,0.00019178,2]
[323326720,1713898238635,-500.0,0.00019178,2]
[323326721,1713898238644,-500.0,0.00019178,2]
[323326722,1713898238653,-500.0,0.00019178,2]
[323326723,1713898238663,-500.0,0.00019178,2]
[323326724,1713898238672,-500.0,0.00019178,2]
[323326725,1713898238682,-500.0,0.00019178,2]
[323326726,1713898238691,-500.0,0.00019178,2]
[323326727,1713898238700,-386.01178664,0.00019178,2]
[323326728,1713898238709,-692.70825887,0.00019178,2]
[323326729,1713898238719,-936.1,0.00019178,2]
[323326730,1713898238728,-500.0,0.00019178,2]
[323326731,1713898238738,-500.0,0.00019178,2]
[323326732,1713898238747,-500.0,0.00019178,2]
[323326733,1713898238756,-213.03916,0.00019178,2]
[323326734,1713898238765,-500.0,0.00019178,2]
[323326735,1713898238774,-201.98451856,0.00019178,2]
[323326736,1713898238783,-151.281226,0.00019178,2]
[323326737,1713898238793,-500.0,0.00019178,2]
[323326738,1713898238803,-500.0,0.00019178,2]
[323326739,1713898238812,-189.97320003,0.00019178,2]
[323326740,1713898238821,-500.0,0.00019178,2]
[323326741,1713898238830,-500.0,0.00019178,2]
[323326742,1713898238840,-500.0,0.00019178,2]
[323326743,1713898238849,-868.74,0.00019178,2]
[323326744,1713898238858,-500.0,0.00019178,2]
[323326745,1713898238868,-543.61,0.00019178,2]
[323326746,1713898238878,-500.0,0.00019178,2]
[323326747,1713898238887,-500.0,0.00019178,2]
[323326748,1713898238897,-500.0,0.00019178,2]
[323326749,1713898238905,-500.0,0.00019178,2]
[323326750,1713898238914,-500.0,0.00019178,2]
[323326751,1713898238923,-500.0,0.00019178,2]
[323326752,1713898238933,-642.46,0.00019178,2]
[323326753,1713898238943,-836.64,0.00019178,2]
[323326754,1713898238952,-500.0,0.00019178,2]
[323326755,1713898238962,-500.0,0.00019178,2]
[323326756,1713898238971,-500.0,0.00019178,2]
[323326757,1713898238981,-500.0,0.00019178,2]
[323326758,1713898238990,-500.0,0.00019178,2]
[323326759,1713898239000,-500.0,0.00019178,2]
[323326760,1713898239010,-500.0,0.00019178,2]
[323326761,1713898239019,-500.0,0.00019178,2]
[323326762,1713898239029,-500.0,0.00019178,2]
[323326763,1713898239038,-151.0,0.00019178,2]
[323326764,1713898239047,-517.05175348,0.00019178,2]
[323326765,1713898239056,-500.0,0.00019178,2]
[323326766,1713898239066,-500.0,0.00019178,2]
[323326767,1713898239075,-438.3743073,0.00019178,2]
[323326768,1713898239084,-151.0,0.00019178,2]
[323326769,1713898239093,-151.0,0.00019178,2]
[323326770,1713898239102,-151.0,0.00019178,2]
[323326771,1713898239111,-1628.9,0.00019178,2]
[323326772,1713898239126,-500.0,0.00019178,2]
[323326773,1713898239136,-500.0,0.00019178,2]
[323326774,1713898239145,-474.81210823,0.00019178,2]
[323326775,1713898239154,-500.0,0.00019178,2]
[323326776,1713898239163,-537.03663541,0.00019178,2]
[323326777,1713898239174,-500.0,0.00019178,2]
[323326778,1713898239184,-500.0,0.00019178,2]
[323326779,1713898239194,-500.0,0.00019178,2]
[323326780,1713898239204,-500.0,0.00019178,2]
[323326781,1713898239214,-500.0,0.00019178,2]
[323326782,1713898239224,-500.0,0.00019178,2]
[323326783,1713898239233,-500.0,0.00019178,2]
[323326784,1713898239243,-151.0,0.00019178,2]
[323326785,1713898239253,-500.0,0.00019178,2]
[323326786,1713898239262,-151.0,0.00019178,2]
[323326787,1713898239271,-500.0,0.00019178,2]
[323326788,1713898239281,-601.09,0.00019178,2]
[323326789,1713898239291,-500.0,0.00019178,2]
[323326790,1713898239300,-500.0,0.00019178,2]
[323326791,1713898239309,-500.0,0.00019178,2]
[323326792,1713898239318,-151.0,0.00019178,2]
[323326793,1713898239327,-500.0,0.00019178,2]
[323326794,1713898239337,-2000.0,0.00019178,2]
[323326795,1713898239346,-500.0,0.00019178,2]
[323326796,1713898239355,-500.0,0.00019178,2]
[323326797,1713898239365,-500.0,0.00019178,2]
[323326798,1713898239379,-500.0,0.00019178,2]
[323326799,1713898239390,-513.11,0.00019178,2]
[323326800,1713898239399,-151.186138,0.00019178,2]
[323326801,1713898239408,-252.19202226,0.00019178,2]
[323326802,1713898239417,-500.0,0.00019178,2]
[323326803,1713898239427,-500.0,0.00019178,2]
[323326804,1713898239436,-1160.46,0.00019178,2]
[323326805,1713898239445,-859.25,0.00019178,2]
[323326806,1713898239454,-328.77712512,0.00019178,2]
[323326807,1713898239463,-500.0,0.00019178,2]
[323326808,1713898239473,-1446.72,0.00019178,2]
[323326809,1713898239483,-500.0,0.00019178,2]
[323326810,1713898239492,-500.0,0.00019178,2]
[323326811,1713898239501,-500.0,0.00019178,2]
[323326812,1713898239512,-500.0,0.00019178,2]
[323326813,1713898239524,-663.08,0.00019178,2]
[323326814,1713898239535,-500.0,0.00019178,2]
[323326815,1713898239544,-500.0,0.00019178,2]
[323326816,1713898239557,-1162.49,0.00019178,2]
[323326817,1713898239566,-500.0,0.00019178,2]
[323326818,1713898239576,-500.0,0.00019178,2]
[323326819,1713898239585,-500.0,0.00019178,2]
[323326820,1713898239595,-500.0,0.00019178,2]
[323326821,1713898239605,-151.0,0.00019178,2]
[323326822,1713898239614,-151.0,0.00019178,2]
[323326823,1713898239629,-151.0,0.00019178,2]
[323326824,1713898239638,-421.21673132,0.00019178,2]
[323326825,1713898239649,-500.0,0.00019178,2]
[323326826,1713898239658,-151.0,0.00019178,2]
[323326827,1713898239668,-151.0,0.00019178,2]
[323326828,1713898239677,-500.0,0.00019178,2]
[323326829,1713898239687,-151.0,0.00019178,2]
[323326830,1713898239696,-1011.29,0.00019178,2]
[323326831,1713898239706,-155.384671,0.00019178,2]
[323326832,1713898239715,-876.21,0.00019178,2]
[323326833,1713898239725,-500.0,0.00019178,2]
[323326835,1713898239734,-500.0,0.00019178,2]
[323326837,1713898239743,-500.0,0.00019178,2]
[323326839,1713898239752,-569.98,0.00019178,2]
[323326841,1713898239762,-524.57,0.00019178,2]
[323326843,1713898239771,-500.0,0.00019178,2]
[323326844,1713898239780,-500.0,0.00019178,2]
[323326849,1713898239790,-500.0,0.00019178,2]
[323326850,1713898239881,-500.0,0.00019178,2]
[323326851,1713898239890,-500.0,0.00019178,2]
[323326852,1713898239899,-500.0,0.00019178,2]
[323326853,1713898239908,-500.0,0.00019178,2]
[323326855,1713898239918,-396.16177853,0.00019178,2]
[323326857,1713898239927,-500.0,0.00019178,2]
[323326859,1713898239935,-501.92,0.00019178,2]
[323326860,1713898239945,-500.0,0.00019178,2]
[323326862,1713898239955,-500.0,0.00019178,2]
[323326863,1713898239965,-500.0,0.00019178,2]
[323326864,1713898239974,-1058.71,0.00019178,2]
[323326865,1713898239983,-500.0,0.00019178,2]
[323326866,1713898239993,-892.61,0.00019178,2]
[323326867,1713898240003,-500.0,0.00019178,2]
[323326868,1713898240012,-500.0,0.00019178,2]
[323326869,1713898240022,-801.97,0.00019178,2]
[323326870,1713898240031,-500.0,0.00019178,2]
[323326871,1713898240041,-1532.34992036,0.00019178,2]
[323326872,1713898240058,-307.49007964,0.00019178,2]
[323326873,1713898240068,-500.0,0.00019178,2]
[323326874,1713898240077,-187.64211036,0.00019178,2]
[323326875,1713898240089,-312.35788964,0.00019178,2]
[323326876,1713898240098,-310.69289008,0.00019178,2]
[323326899,1713898240508,-189.30710992,0.00019178,2]
[323326900,1713898240522,-500.0,0.00019178,2]
[323326901,1713898240530,-194.41398633,0.00019178,2]
[323326902,1713898240539,-3138.38,0.00019178,2]
[323326903,1713898240549,-492.67289003,0.00019178,2]
[323326904,1713898240559,-183.39636706,0.00019178,2]
[323326912,1713898240712,-316.60363294,0.00019178,2]
[323326914,1713898240721,-95.48392033,0.00019178,2]
[323327349,1713898922503,300.0,0.00014728,2]
[323327391,1713899228140,-154.82968734,0.00018899,2]
[323327392,1713899228162,-680.75031266,0.00018899,2]
[323327393,1713899237094,-713.71328188,0.00018899,2]
[323327394,1713899237115,-586.37904086,0.000189,2]
[323327395,1713899237136,-199.90767726,0.00018975,2]
[323327396,1713899249100,-186.10410938,0.00018975,2]
[323327397,1713899249121,-313.89589062,0.00018975,2]
[323327448,1713899432375,-819.30827247,0.00018956,2]
[323327453,1713899432414,-180.69172753,0.00018956,2]
[323327455,1713899432423,-378.81236825,0.00018975,2]
[323327457,1713899432432,-67.18045063,0.00018986,2]
[323327459,1713899432445,-90.35805634,0.00018986,2]
[323327461,1713899432454,-1000.0,0.00018994,2]
[323327463,1713899432463,-1000.0,0.00018998,2]
[323327465,1713899432472,-291.9508022,0.00018998,2]
[323327467,1713899432481,-172.09114146,0.00018998,2]
[323327470,1713899432494,-302.70116458,0.00018998,2]
[323327473,1713899432504,-1289.45845379,0.00018998,7]
[323327475,1713899432513,-154.84515175,0.00018998,2]
[323327477,1713899432527,-154.95418533,0.00018998,2]
[323327479,1713899432537,-276.5697273,0.00018998,2]
[323327481,1713899432546,-223.21192281,0.00018998,7]
[323327484,1713899432556,-228.69176972,0.00018998,2]
[323327486,1713899432565,-154.86062544,0.00018998,2]
[323327488,1713899432575,-300.0,0.00018999,2]
[323327490,1713899432584,-561.16797133,0.00019,2]
[323327492,1713899432593,-2087.61919006,0.00019,2]
[323327721,1713899438391,-39623.66297256,0.00018999,2]
[323327723,1713899438401,-66364.38080994,0.00019,2]
[323327725,1713899438410,-1000.0,0.00019011,2]
[323327727,1713899438419,-1000.0,0.00019021,2]
[323327729,1713899438428,-1000.0,0.00019025,2]
[323327731,1713899438438,-500.0,0.00019033,2]
[323327733,1713899438448,-1000.0,0.0001904,2]
[323327735,1713899438457,-500.0,0.00019054,2]
[323327737,1713899438466,-154.99991335,0.00019076,2]
[323327739,1713899438475,-1476.72655165,0.00019076,2]
[323327741,1713899438483,-2000.0,0.00019078,2]
[323327743,1713899438493,-44444.0,0.00019078,2]
[323327745,1713899438502,-1000.0,0.00019097,2]
[323327747,1713899438511,-1000.0,0.0001914,2]
[323327749,1713899438521,-1000.0,0.00019159,2]
[323327751,1713899438530,-283.08369263,0.00019176,2]
[323327753,1713899438539,-1676.83616858,0.00019176,2]
[323327755,1713899438548,-1576.32789394,0.00019176,2]
[323327758,1713899438557,-204.00475123,0.00019176,2]
[323327760,1713899438566,-204.24092821,0.00019176,2]
[323327761,1713899438576,-193.52697819,0.00019176,2]
[323327764,1713899438587,-977.06231715,0.00019176,2]
[323327766,1713899438598,-154.8915759,0.00019176,2]
[323327767,1713899438607,-673.29235126,0.00019176,2]
[323327770,1713899438617,-3342.94822412,0.00019176,2]
[323327772,1713899438632,-521.29976744,0.00019177,2]
[323327775,1713899438649,-539.43970623,0.00019177,2]
[323327777,1713899438662,-112007.6829484,0.00019177,2]
[323327780,1713899438676,-72012.69229508,0.00019178,2]
[323327783,1713899438692,-500.0,0.00019178,2]
[323327785,1713899438707,-500.0,0.00019178,2]
[323327788,1713899438720,-500.0,0.00019178,2]
[323327791,1713899438734,-500.0,0.00019178,2]
[323327793,1713899438748,-253.20545421,0.00019178,2]
[323327796,1713899438763,-498.98656805,0.00019178,2]
[323327798,1713899438777,-500.0,0.00019178,2]
[323327801,1713899438792,-500.0,0.00019178,2]
[323327804,1713899438807,-500.0,0.00019178,2]
[323327806,1713899438821,-500.0,0.00019178,2]
[323327809,1713899438837,-500.0,0.00019178,2]
[323327811,1713899438854,-500.0,0.00019178,2]
[323327814,1713899438872,-263.51544669,0.00019178,2]
[323327816,1713899438887,-236.48455331,0.00019178,2]
[323327818,1713899438900,-500.0,0.00019178,2]
[323327820,1713899438914,-500.0,0.00019178,2]
[323327823,1713899438931,-500.0,0.00019178,2]
[323327825,1713899438942,-500.0,0.00019178,2]
[323327827,1713899438956,-151.0,0.00019178,2]
[323327830,1713899438970,-151.0,0.00019178,2]
[323327832,1713899438983,-258.25039974,0.00019178,2]
[323327989,1713899443678,-157.53850697,0.00018986,2]
[323327990,1713899443688,-157.53850697,0.00018986,2]
[323327991,1713899443697,-184.92298606,0.00019178,2]
[323328050,1713899820750,300.0,0.00014728,2]
[323328053,1713899889027,150.81901718,0.00020876,30]
[323328054,1713899889078,150.81901718,0.00020459,120]
[323328059,1713900003453,300.0,0.00014728,2]
[323328078,1713900434207,-274.02958842,0.000188,2]
[323328079,1713900434229,-2725.97041158,0.00018897,2]
[323328080,1713900451849,150.83408251,0.00021342,30]
[323328081,1713900451903,139.93526315,0.00020916,120]
[323328082,1713900451934,10.89881936,0.00020916,120]
[323328097,1713900632594,-239.77588992,0.000188,2]
[323328099,1713900632603,-244.48242581,0.00018897,2]
[323328101,1713900632615,-414.2117332,0.00018897,2]
[323328103,1713900632624,-300.0,0.00018897,2]
[323328105,1713900632634,-749.30653743,0.00018898,2]
[323328190,1713900641555,-720.0,0.00018898,2]
[323328191,1713900641568,-3413.93132159,0.00018898,2]
[323328192,1713900641580,-1407.7731165,0.00018898,2]
[323328193,1713900641591,-10926.39587251,0.00018898,2]
[323328238,1713900643931,-3429.69887197,0.00018898,2]
[323328240,1713900643940,-390.91936057,0.000189,2]
[323328242,1713900643950,-2000.0,0.00018978,2]
[323328244,1713900643959,-157.53850697,0.00018986,2]
[323328246,1713900643968,-746.7352193,0.00019,2]
[323328248,1713900643977,-820.0,0.00019,2]
[323328250,1713900643986,-622.51134787,0.00019067,2]
[323328252,1713900643996,-44444.0,0.00019078,2]
[323328254,1713900644005,-7794.08111754,0.00019175,2]
[323328256,1713900644014,-1611.54766045,0.00019176,2]
[323328258,1713900644023,-193.52697819,0.00019176,2]
[323328260,1713900644032,-72012.69229508,0.00019178,2]
[323328262,1713900644041,-500.0,0.00019178,2]
[323328264,1713900644050,-263.51544669,0.00019178,2]
[323328266,1713900644059,-500.0,0.00019178,2]
[323328268,1713900644068,-500.0,0.00019178,2]
[323328270,1713900644077,-500.0,0.00019178,2]
[323328272,1713900644087,-500.0,0.00019178,2]
[323328274,1713900644096,-500.0,0.00019178,2]
[323328276,1713900644108,-500.0,0.00019178,2]
[323328278,1713900644118,-500.0,0.00019178,2]
[323328280,1713900644127,-500.0,0.00019178,2]
[323328282,1713900644137,-250.0,0.00019178,2]
[323328284,1713900644146,-576.97282003,0.00019178,2]
[323328286,1713900644154,-500.0,0.00019178,2]
[323328288,1713900644164,-500.0,0.00019178,2]
[323328290,1713900644173,-151.186138,0.00019178,2]
[323328292,1713900644183,-213.03916,0.00019178,2]
[323328294,1713900644193,-150.17091664,0.00019178,2]
[323328296,1713900644202,-500.0,0.00019178,2]
[323328298,1713900644211,-2120.91,0.00019178,2]
[323328300,1713900644220,-500.0,0.00019178,2]
[323328301,1713900644230,-500.0,0.00019178,2]
[323328303,1713900644240,-502.13673575,0.00019178,2]
[323328305,1713900644249,-500.0,0.00019178,2]
[323328307,1713900644259,-500.0,0.00019178,2]
[323328310,1713900644271,-500.0,0.00019178,2]
[323328311,1713900644281,-500.0,0.00019178,2]
[323328313,1713900644290,-500.0,0.00019178,2]
[323328315,1713900644300,-500.0,0.00019178,2]
[323328318,1713900644310,-500.0,0.00019178,2]
[323328320,1713900644320,-500.0,0.00019178,2]
[323328321,1713900644329,-500.0,0.00019178,2]
[323328323,1713900644339,-1003.75,0.00019178,2]
[323328325,1713900644348,-500.0,0.00019178,2]
[323328327,1713900644360,-500.0,0.00019178,2]
[323328329,1713900644369,-500.0,0.00019178,2]
[323328331,1713900644378,-622.67021723,0.00019178,2]
[323328333,1713900644387,-500.0,0.00019178,2]
[323328335,1713900644396,-500.0,0.00019178,2]
[323328337,1713900644405,-500.0,0.00019178,2]
[323328339,1713900644415,-410.37107226,0.00019178,2]
[323328341,1713900644423,-237.92671543,0.00019178,2]
[323328343,1713900644433,-500.0,0.00019178,2]
[323328345,1713900644443,-500.0,0.00019178,2]
[323328347,1713900644452,-500.0,0.00019178,2]
[323328349,1713900644461,-500.0,0.00019178,2]
[323328351,1713900644471,-681.99,0.00019178,2]
[323328353,1713900644480,-995.61,0.00019178,2]
[323328355,1713900644489,-1248.66,0.00019178,2]
[323328357,1713900644497,-500.0,0.00019178,2]
[323328359,1713900644507,-500.0,0.00019178,2]
[323328361,1713900644515,-500.0,0.00019178,2]
[323328363,1713900644524,-500.0,0.00019178,2]
[323328365,1713900644533,-500.0,0.00019178,2]
[323328367,1713900644542,-500.0,0.00019178,2]
[323328369,1713900644551,-500.0,0.00019178,2]
[323328371,1713900644560,-500.0,0.00019178,2]
[323328373,1713900644568,-500.0,0.00019178,2]
[323328375,1713900644577,-522.75617609,0.00019178,2]
[323328377,1713900644586,-500.0,0.00019178,2]
[323328379,1713900644595,-500.0,0.00019178,2]
[323328381,1713900644604,-456.91555066,0.00019178,2]
[323328383,1713900644613,-528.71520212,0.00019178,2]
[323328385,1713900644621,-500.0,0.00019178,2]
[323328387,1713900644630,-500.0,0.00019178,2]
[323328389,1713900644639,-617.16,0.00019178,2]
[323328391,1713900644648,-500.0,0.00019178,2]
[323328393,1713900644657,-972.18,0.00019178,2]
[323328395,1713900644668,-500.0,0.00019178,2]
[323328397,1713900644676,-623.21761381,0.00019178,2]
[323328399,1713900644685,-500.0,0.00019178,2]
[323328401,1713900644694,-514.79566527,0.00019178,2]
[323328403,1713900644703,-507.01934023,0.00019178,2]
[323328405,1713900644712,-500.0,0.00019178,2]
[323328407,1713900644722,-500.0,0.00019178,2]
[323328409,1713900644731,-500.0,0.00019178,2]
[323328411,1713900644740,-502.5613441,0.00019178,2]
[323328413,1713900644749,-500.0,0.00019178,2]
[323328415,1713900644758,-500.0,0.00019178,2]
[323328417,1713900644767,-500.0,0.00019178,2]
[323328419,1713900644776,-500.0,0.00019178,2]
[323328421,1713900644786,-526.78,0.00019178,2]
[323328423,1713900644794,-500.0,0.00019178,2]
[323328425,1713900644803,-500.0,0.00019178,2]
[323328427,1713900644812,-812.7,0.00019178,2]
[323328429,1713900644821,-500.0,0.00019178,2]
[323328431,1713900644830,-500.0,0.00019178,2]
[323328433,1713900644840,-500.0,0.00019178,2]
[323328435,1713900644850,-500.0,0.00019178,2]
[323328437,1713900644861,-151.0,0.00019178,2]
[323328439,1713900644870,-320.72884474,0.00019178,2]
[323328441,1713900644879,-151.0,0.00019178,2]
[323328443,1713900644888,-500.0,0.00019178,2]
[323328445,1713900644897,-500.0,0.00019178,2]
[323328447,1713900644906,-151.0,0.00019178,2]
[323328449,1713900644915,-500.0,0.00019178,2]
[323328451,1713900644925,-500.0,0.00019178,2]
[323328453,1713900644934,-2061.85,0.00019178,2]
[323328455,1713900644943,-500.0,0.00019178,2]
[323328457,1713900644953,-500.0,0.00019178,2]
[323328459,1713900644962,-500.0,0.00019178,2]
[323328461,1713900644971,-623.67,0.00019178,2]
[323328463,1713900644980,-500.0,0.00019178,2]
[323328465,1713900644989,-500.0,0.00019178,2]
[323328467,1713900644998,-500.0,0.00019178,2]
[323328469,1713900645007,-151.0,0.00019178,2]
[323328471,1713900645016,-1606.4,0.00019178,2]
[323328472,1713900645025,-500.0,0.00019178,2]
[323328473,1713900645035,-500.0,0.00019178,2]
[323328474,1713900645044,-500.0,0.00019178,2]
[323328475,1713900645053,-500.0,0.00019178,2]
[323328476,1713900645062,-500.0,0.00019178,2]
[323328477,1713900645073,-500.0,0.00019178,2]
[323328478,1713900645081,-500.0,0.00019178,2]
[323328479,1713900645090,-500.0,0.00019178,2]
[323328480,1713900645100,-859.25,0.00019178,2]
[323328481,1713900645110,-500.0,0.00019178,2]
[323328482,1713900645119,-1160.46,0.00019178,2]
[323328483,1713900645129,-500.0,0.00019178,2]
[323328484,1713900645138,-500.0,0.00019178,2]
[323328485,1713900645148,-151.0,0.00019178,2]
[323328486,1713900645157,-500.0,0.00019178,2]
[323328487,1713900645167,-1446.72,0.00019178,2]
[323328488,1713900645176,-500.0,0.00019178,2]
[323328489,1713900645185,-500.0,0.00019178,2]
[323328496,1713900645278,-500.0,0.00019178,2]
[323328498,1713900645288,-500.0,0.00019178,2]
[323328500,1713900645297,-876.21,0.00019178,2]
[323328502,1713900645306,-201.98451856,0.00019178,2]
[323328504,1713900645315,-1162.49,0.00019178,2]
[323328506,1713900645324,-500.0,0.00019178,2]
[323328508,1713900645334,-500.0,0.00019178,2]
[323328510,1713900645343,-500.0,0.00019178,2]
[323328512,1713900645352,-189.97320003,0.00019178,2]
[323328514,1713900645362,-893.12,0.00019178,2]
[323328516,1713900645370,-500.0,0.00019178,2]
[323328517,1713900645379,-892.61,0.00019178,2]
[323328519,1713900645388,-501.92,0.00019178,2]
[323328521,1713900645397,-564.44,0.00019178,2]
[323328523,1713900645406,-500.0,0.00019178,2]
[323328525,1713900645415,-500.0,0.00019178,2]
[323328528,1713900645425,-500.0,0.00019178,2]
[323328530,1713900645434,-500.0,0.00019178,2]
[323328532,1713900645443,-642.46,0.00019178,2]
[323328534,1713900645452,-500.0,0.00019178,2]
[323328536,1713900645461,-500.0,0.00019178,2]
[323328538,1713900645470,-500.0,0.00019178,2]
[323328540,1713900645479,-500.0,0.00019178,2]
[323328542,1713900645488,-500.0,0.00019178,2]
[323328544,1713900645497,-500.0,0.00019178,2]
[323328546,1713900645506,-500.0,0.00019178,2]